bitfinex/quotes_BTCUSD_20251113
["timestamp","ask_amount","ask_price","bid_price","bid_amount"]
[1763033807081,0.2425,102790.0,102780.0,0.26495038]
[1763033810730,0.51767361,102810.0,102800.0,0.19455252]
[1763033810942,0.212821,102810.0,102800.0,0.30452252]
[1763033811711,0.0182874,102810.0,102800.0,0.30452252]
[1763033812062,0.00014001,102810.0,102800.0,0.30452252]
[1763033812272,0.00114001,102810.0,102800.0,0.30452252]
[1763033812429,0.00114001,102810.0,102800.0,0.28452252]
[1763033812904,0.00114001,102810.0,102800.0,0.30452252]
[1763033813280,0.00014001,102810.0,102800.0,0.30452252]
[1763033813622,0.00014001,102810.0,102800.0,0.28452252]
[1763033813819,0.00014001,102810.0,102800.0,0.30452252]
[1763033814845,0.00014001,102810.0,102800.0,0.28452252]
[1763033815049,0.00014001,102810.0,102800.0,0.30452252]
[1763033816977,0.00014001,102810.0,102800.0,0.62752252]
[1763033817367,0.00014001,102810.0,102800.0,0.26224252]
[1763033817598,0.00014001,102810.0,102800.0,0.30456252]
[1763033818284,0.00014001,102810.0,102800.0,0.30656252]
[1763033818529,0.00014001,102810.0,102800.0,0.30756252]
[1763033819881,0.00014001,102810.0,102800.0,0.28756252]
[1763033820084,0.00014001,102810.0,102800.0,0.30756252]
[1763033821492,0.00014001,102810.0,102800.0,0.26524252]
[1763033821717,0.00014001,102810.0,102800.0,0.30756252]
[1763033821904,0.00014001,102810.0,102800.0,0.26524252]
[1763033822109,0.00014001,102810.0,102800.0,0.30756252]
[1763033828758,0.00014001,102810.0,102800.0,0.28756252]
[1763033828893,0.00014001,102810.0,102800.0,0.30756252]
[1763033829321,0.00014001,102810.0,102800.0,0.30752252]
[1763033830413,0.00014001,102810.0,102800.0,0.30452252]
[1763033830527,0.00014001,102810.0,102800.0,0.30552252]
[1763033830729,0.00014001,102810.0,102800.0,0.30652252]
[1763033832127,0.00014001,102810.0,102800.0,0.26424252]
[1763033832349,0.00014001,102810.0,102800.0,0.30652252]
[1763033836567,0.19467361,102810.0,102800.0,0.30652252]
[1763033836777,0.00014001,102810.0,102800.0,0.30652252]
[1763033837741,0.00014001,102810.0,102800.0,0.28652252]
[1763033837940,0.00014001,102810.0,102800.0,0.30652252]
[1763033840042,0.00014001,102810.0,102800.0,0.28652252]
[1763033840243,0.00014001,102810.0,102800.0,0.30652252]
[1763033845553,0.00014001,102810.0,102800.0,0.62952252]
[1763033846570,0.00014001,102810.0,102800.0,0.60952252]
[1763033846785,0.00014001,102810.0,102800.0,0.62952252]
[1763033848044,0.00014001,102810.0,102800.0,0.62752252]
[1763033848491,0.00014001,102810.0,102800.0,0.62952252]
[1763033848693,0.00014001,102810.0,102800.0,0.63252252]
[1763033848847,0.26036599,102850.0,102820.0,0.22331468]
[1763033849047,0.39748731,102850.0,102840.0,0.22192685]
[1763033849300,0.37931873,102850.0,102840.0,0.24192685]
[1763033849526,0.57377667,102850.0,102840.0,0.26819685]
[1763033849724,0.58935667,102850.0,102840.0,0.24192685]
[1763033850566,0.37931873,102850.0,102840.0,0.26697685]
[1763033850925,0.00013999,102850.0,102840.0,0.24697685]
[1763033851263,0.00013999,102850.0,102840.0,0.26697685]
[1763033851935,0.00213999,102850.0,102840.0,0.26697685]
[1763033853959,0.00113999,102850.0,102840.0,0.26697685]
[1763033854159,0.00113999,102850.0,102840.0,0.26797685]
[1763033854369,0.00013999,102850.0,102840.0,0.26797685]
[1763033854615,0.00013999,102850.0,102840.0,0.26897685]
[1763033856413,0.00013999,102850.0,102840.0,0.59197685]
[1763033859144,0.00013999,102850.0,102840.0,0.58197684]
[1763033859347,0.00013999,102850.0,102840.0,0.60197684]
[1763033859787,0.00013999,102850.0,102840.0,0.60097684]
[1763033860133,0.00330315,102880.0,102870.0,0.19442014]
[1763033860332,0.00376967,102880.0,102870.0,0.27916014]
[1763033860535,0.00376967,102880.0,102870.0,0.30421014]
[1763033861435,0.00376967,102880.0,102870.0,0.30521014]
[1763033861636,0.00376967,102880.0,102870.0,0.30621014]
[1763033867416,0.00376967,102880.0,102870.0,0.28621014]
[1763033867639,0.00376967,102880.0,102870.0,0.30621014]
[1763033871346,0.00376967,102880.0,102870.0,0.04951]
[1763033871571,0.19817091,102880.0,102870.0,0.09175]
[1763033871776,0.20835091,102880.0,102870.0,0.09175]
[1763033872005,0.20835091,102880.0,102870.0,0.0667]
[1763033872649,0.20835091,102880.0,102870.0,0.0657]
[1763033872896,0.20835091,102880.0,102870.0,0.0857]
[1763033873105,0.20835091,102880.0,102870.0,0.0847]
[1763033873323,0.20835091,102880.0,102870.0,0.0647]
[1763033873541,0.20935091,102880.0,102870.0,0.02246]
[1763033873758,0.20935091,102880.0,102870.0,0.0647]
[1763033874025,0.20935091,102880.0,102870.0,0.02246]
[1763033874253,0.20935091,102880.0,102870.0,0.0647]
[1763033874466,0.20935091,102880.0,102870.0,0.0847]
[1763033875878,0.20935091,102880.0,102870.0,0.28417014]
[1763033876084,0.00476967,102880.0,102870.0,0.30417014]
[1763033878392,0.19917091,102880.0,102870.0,0.30417014]
[1763033878934,0.19917091,102880.0,102870.0,0.08975]
[1763033879160,0.19917091,102880.0,102870.0,0.10975]
[1763033879335,0.19917091,102880.0,102870.0,0.08975]
[1763033879555,0.19917091,102880.0,102870.0,0.10975]
[1763033880853,0.19917091,102880.0,102870.0,0.08975]
[1763033881675,0.19917091,102880.0,102870.0,0.10975]
[1763033882505,0.00476967,102880.0,102870.0,0.28417014]
[1763033882707,0.00476967,102880.0,102870.0,0.30417014]
[1763033882845,0.19917091,102880.0,102870.0,0.30417014]
[1763033883250,0.21730437,102880.0,102870.0,0.30417014]
[1763033883453,0.2173044,102880.0,102870.0,0.10975]
[1763033883657,0.2173044,102880.0,102870.0,0.08975]
[1763033884097,0.2173044,102880.0,102870.0,0.10975]
[1763033884530,0.2173044,102880.0,102870.0,0.30417014]
[1763033884747,0.02290316,102880.0,102870.0,0.28417014]
[1763033885459,0.00476967,102880.0,102870.0,0.30417014]
[1763033886928,0.00476967,102880.0,102870.0,0.30413014]
[1763033891282,0.00476967,102880.0,102870.0,0.28413014]
[1763033891497,0.00476967,102880.0,102870.0,0.30413014]
[1763033892276,0.00476967,102880.0,102870.0,0.30513014]
[1763033892714,0.00376967,102880.0,102870.0,0.30413014]
[1763033893115,0.00376967,102880.0,102870.0,0.30613014]
[1763033894173,0.00376967,102880.0,102870.0,0.60913014]
[1763033894382,0.00376967,102880.0,102870.0,0.62913014]
[1763033894794,0.00376967,102880.0,102870.0,0.65830046]
[1763033897736,0.00376967,102880.0,102870.0,0.63830046]
[1763033897942,0.00376967,102880.0,102870.0,0.65830046]
[1763033899232,0.00376967,102880.0,102870.0,2.66830045]
[1763033899900,0.00376967,102880.0,102870.0,2.66730045]
[1763033900313,0.00376967,102880.0,102870.0,2.66830045]
[1763033900983,0.00376967,102880.0,102870.0,2.66730045]
[1763033901153,0.00376967,102880.0,102870.0,2.66830045]
[1763033901929,0.00376967,102880.0,102870.0,0.66830045]
[1763033906838,0.00376967,102880.0,102870.0,2.66830045]
[1763033907403,0.0002,102890.0,102880.0,0.53740124]
[1763033907604,0.00033604,102890.0,102880.0,0.59022124]
[1763033908025,0.00033604,102890.0,102880.0,0.61938796]
[1763033908711,0.00033604,102890.0,102880.0,0.62138796]
[1763033909131,0.00033604,102890.0,102880.0,0.60138796]
[1763033909339,0.00033604,102890.0,102880.0,0.59422124]
[1763033909546,0.00033604,102890.0,102880.0,0.27122124]
[1763033909753,0.00033604,102890.0,102880.0,0.31338124]
[1763033910437,0.19471839,102890.0,102880.0,0.31138124]
[1763033910846,0.19471839,102890.0,102880.0,0.31238124]
[1763033911049,0.00033604,102890.0,102880.0,0.31038124]
[1763033911250,0.00033604,102890.0,102880.0,0.31138124]
[1763033911578,0.19471839,102890.0,102880.0,0.31138124]
[1763033912586,0.19471839,102890.0,102880.0,0.29138124]
[1763033913233,0.00033604,102890.0,102880.0,0.31138124]
[1763033916387,0.55456392,102920.0,102910.0,0.0104]
[1763033916564,0.57822392,102920.0,102910.0,0.0104]
[1763033916801,0.57822392,102920.0,102900.0,0.28339345]
[1763033916802,0.19434457,102910.0,102900.0,0.26692345]
[1763033916981,0.19434457,102910.0,102900.0,0.27102345]
[1763033917229,0.19434457,102910.0,102900.0,0.30749345]
[1763033917653,0.19434457,102910.0,102900.0,0.09313]
[1763033917860,0.19434457,102910.0,102900.0,0.28749345]
[1763033918075,0.19434457,102910.0,102900.0,0.30749345]
[1763033918280,0.53480518,102920.0,102910.0,0.19434457]
[1763033918281,0.51114518,102920.0,102910.0,0.19434457]
[1763033918455,0.19434457,102910.0,102900.0,0.24692345]
[1763033918663,0.19434457,102910.0,102900.0,0.26692345]
[1763033918877,0.19434457,102910.0,102900.0,0.28339345]
[1763033919079,0.51114518,102920.0,102910.0,0.19434457]
[1763033919283,0.51114518,102920.0,102910.0,0.07238]
[1763033919513,0.51114518,102920.0,102910.0,0.05238]
[1763033920375,0.51314518,102920.0,102910.0,0.05238]
[1763033920598,0.51414518,102920.0,102910.0,0.24672457]
[1763033920809,0.51414518,102920.0,102910.0,0.26672457]
[1763033921244,0.51414518,102920.0,102910.0,0.24672457]
[1763033921461,0.50488518,102920.0,102910.0,0.24672457]
[1763033921808,0.50488518,102920.0,102910.0,0.26672457]
[1763033922655,0.4757152,102920.0,102910.0,0.26672457]
[1763033922906,0.4757152,102920.0,102910.0,0.05238]
[1763033923110,0.4849752,102920.0,102910.0,0.02828]
[1763033923328,0.5013152,102920.0,102910.0,0.03181]
[1763033924317,0.5013152,102920.0,102910.0,0.01181]
[1763033924737,0.5013152,102920.0,102910.0,0.03181]
[1763033925103,0.5013152,102920.0,102900.0,0.27102345]
[1763033925104,0.19434457,102910.0,102900.0,0.27102345]
[1763033925502,0.19434457,102910.0,102900.0,0.28749345]
[1763033925711,0.4849752,102920.0,102900.0,0.28749345]
[1763033925941,0.4849752,102920.0,102910.0,0.23025457]
[1763033926154,0.4819752,102920.0,102910.0,0.24672457]
[1763033926337,0.4819752,102920.0,102910.0,0.26672457]
[1763033926585,0.33226,102920.0,102910.0,0.24672457]
[1763033926796,0.27539538,102940.0,102920.0,0.19432568]
[1763033926797,0.20712182,102940.0,102920.0,0.19432568]
[1763033927000,0.20712182,102940.0,102930.0,0.22258681]
[1763033927001,0.20726167,102940.0,102930.0,0.22258681]
[1763033927217,0.20726167,102940.0,102930.0,0.26668681]
[1763033927453,0.53014028,102940.0,102930.0,0.26668681]
[1763033927885,0.00106235,102940.0,102930.0,0.24668681]
[1763033928087,0.00106235,102940.0,102930.0,0.26668681]
[1763033928705,0.00106235,102940.0,102930.0,0.24668681]
[1763033929106,0.00106235,102940.0,102930.0,0.26668681]
[1763033929336,0.00306235,102940.0,102930.0,0.26668681]
[1763033929542,0.00406235,102940.0,102930.0,0.26668681]
[1763033930503,0.21014028,102940.0,102930.0,0.02828]
[1763033930708,0.21014028,102940.0,102930.0,0.04828]
[1763033930921,0.21014028,102940.0,102930.0,0.02828]
[1763033931512,0.21014028,102940.0,102930.0,0.22258681]
[1763033931753,0.21014028,102940.0,102930.0,0.26668681]
[1763033931947,0.21014028,102940.0,102930.0,0.24668681]
[1763033932174,0.21014028,102940.0,102930.0,0.07238]
[1763033932384,0.21014028,102940.0,102930.0,0.05238]
[1763033932584,0.21014028,102940.0,102930.0,0.07238]
[1763033932761,0.21014028,102940.0,102930.0,0.26668681]
[1763033932996,0.21014028,102940.0,102930.0,0.07238]
[1763033933173,0.21014028,102940.0,102930.0,0.26668681]
[1763033933587,0.21014028,102940.0,102930.0,0.07238]
[1763033934247,0.21014028,102940.0,102930.0,0.26668681]
[1763033934454,0.21014028,102940.0,102930.0,0.24668681]
[1763033935469,0.21014028,102940.0,102930.0,0.26668681]
[1763033937124,0.01585235,102940.0,102930.0,0.24668681]
[1763033937333,0.00406235,102940.0,102930.0,0.26668681]
[1763033937539,0.2000635,102940.0,102930.0,0.26668681]
[1763033938962,0.2000635,102940.0,102930.0,0.24668681]
[1763033939139,0.2000635,102940.0,102930.0,0.05238]
[1763033939320,0.2000635,102940.0,102930.0,0.24668681]
[1763033939521,0.2000635,102940.0,102930.0,0.26668681]
[1763033940233,0.00577557,102940.0,102930.0,0.24668681]
[1763033940632,0.2000635,102940.0,102930.0,0.26668681]
[1763033941052,0.2000635,102940.0,102930.0,0.05238]
[1763033941260,0.2000635,102940.0,102930.0,0.07238]
[1763033941481,0.2000635,102940.0,102930.0,0.26668681]
[1763033941695,0.2117135,102940.0,102930.0,0.05238]
[1763033941920,0.2504835,102940.0,102930.0,0.01181]
[1763033942338,0.2270535,102940.0,102930.0,0.20611681]
[1763033942560,0.2117135,102940.0,102930.0,0.26569681]
[1763033944305,0.2117135,102940.0,102930.0,0.07139]
[1763033944499,0.2117135,102940.0,102930.0,0.05139]
[1763033944712,0.2117135,102940.0,102930.0,0.07139]
[1763033944916,0.2117135,102940.0,102930.0,0.05139]
[1763033945148,0.2000635,102940.0,102930.0,0.24569681]
[1763033945602,0.2000635,102940.0,102930.0,0.26569681]
[1763033946643,0.2000635,102940.0,102930.0,0.05139]
[1763033947076,0.2000635,102940.0,102930.0,0.24569681]
[1763033947617,0.2000635,102940.0,102930.0,0.26569681]
[1763033947845,0.2000635,102940.0,102930.0,0.05139]
[1763033948084,0.2000635,102940.0,102930.0,0.24569681]
[1763033948264,0.2000635,102940.0,102930.0,0.26569681]
[1763033948674,0.2272935,102940.0,102930.0,0.04735]
[1763033948872,0.2511035,102940.0,102930.0,0.04735]
[1763033949507,0.2511035,102940.0,102930.0,0.03181]
[1763033949914,0.2511035,102940.0,102930.0,0.01181]
[1763033950299,0.2511035,102940.0,102930.0,0.03181]
[1763033950474,0.2511035,102940.0,102930.0,0.01181]
[1763033950916,0.19430681,102930.0,102910.0,0.04573722]
[1763033951077,0.22047568,102920.0,102910.0,0.01181]
[1763033951265,0.24550972,102920.0,102910.0,0.04216]
[1763033951469,0.24550972,102920.0,102910.0,0.23650457]
[1763033951901,0.24550972,102920.0,102910.0,0.25650457]
[1763033952109,0.24550972,102920.0,102910.0,0.04216]
[1763033952320,0.24550972,102920.0,102910.0,0.25650457]
[1763033952558,0.24550972,102920.0,102910.0,0.06216]
[1763033952754,0.24550972,102920.0,102910.0,0.25650457]
[1763033953396,0.24550972,102920.0,102910.0,0.04216]
[1763033953986,0.00122404,102920.0,102910.0,0.30845457]
[1763033954353,0.00222404,102920.0,102910.0,0.28845457]
[1763033954595,0.00222404,102920.0,102910.0,0.30845457]
[1763033955187,0.00122404,102920.0,102910.0,0.30845457]
[1763033956047,0.00122404,102920.0,102910.0,0.28845457]
[1763033956254,0.00122404,102920.0,102910.0,0.30845457]
[1763033956671,0.00122404,102920.0,102910.0,0.63145457]
[1763033957496,0.00106235,102940.0,102930.0,0.19430681]
[1763033957872,0.00106235,102940.0,102930.0,0.27874681]
[1763033958091,0.00106235,102940.0,102930.0,0.62595681]
[1763033958515,1e-08,102940.0,102930.0,0.63554766]
[1763033959052,1e-08,102940.0,102930.0,0.62595681]
[1763033959258,1e-08,102940.0,102930.0,0.62695681]
[1763033959695,1e-08,102940.0,102930.0,0.62595681]
[1763033960105,1e-08,102940.0,102930.0,0.60595681]
[1763033960422,1e-08,102940.0,102930.0,0.62695681]
[1763033960625,1e-08,102940.0,102930.0,0.62595681]
[1763033961045,1e-08,102940.0,102930.0,0.62995681]
[1763033962857,1e-08,102940.0,102930.0,0.58775681]
[1763033963085,0.00048931,102940.0,102930.0,0.28703681]
[1763033963500,0.00048931,102940.0,102930.0,0.30703681]
[1763033963942,0.00048931,102940.0,102930.0,0.30503681]
[1763033964172,0.00048931,102940.0,102930.0,0.30403681]
[1763033964563,0.00048931,102940.0,102930.0,0.30503681]
[1763033969039,0.00048931,102940.0,102930.0,0.26275681]
[1763033969248,0.00048931,102940.0,102930.0,0.30503681]
[1763033972887,0.00048931,102940.0,102930.0,0.28503681]
[1763033973310,0.00048931,102940.0,102930.0,0.30503681]
[1763033974342,0.00048931,102940.0,102930.0,0.24481681]
[1763033974549,0.20609724,102940.0,102930.0,0.30467681]
[1763033975305,0.20609724,102940.0,102930.0,0.30267681]
[1763033976169,0.20609724,102940.0,102930.0,0.28267681]
[1763033976375,0.24539724,102940.0,102930.0,0.04851]
[1763033977212,0.24539724,102940.0,102930.0,0.04228]
[1763033977425,0.19430681,102930.0,102920.0,0.03022]
[1763033977631,0.19430681,102930.0,102920.0,0.09246]
[1763033977632,0.20526681,102930.0,102920.0,0.09246]
[1763033977837,0.20551148,102930.0,102920.0,0.07246]
[1763033978062,0.20551148,102930.0,102920.0,0.09246]
[1763033978279,0.20551148,102930.0,102920.0,0.26678568]
[1763033978485,0.20551148,102930.0,102920.0,0.24279568]
[1763033978699,0.20551148,102930.0,102920.0,0.28365568]
[1763033978909,0.20551148,102930.0,102920.0,0.28066568]
[1763033979095,0.20551148,102930.0,102920.0,0.26066568]
[1763033979721,0.24481148,102930.0,102920.0,0.00823]
[1763033979940,0.24481148,102930.0,102920.0,0.04424]
[1763033980308,0.24481148,102930.0,102920.0,0.06424]
[1763033980507,0.24481148,102930.0,102920.0,0.04424]
[1763033980746,0.24481148,102930.0,102920.0,0.06324]
[1763033980915,0.01120467,102930.0,102920.0,0.30819568]
[1763033981123,0.20551148,102930.0,102920.0,0.30819568]
[1763033981331,0.20651148,102930.0,102920.0,0.30819568]
[1763033981732,0.01220467,102930.0,102920.0,0.30819568]
[1763033982134,0.20651148,102930.0,102920.0,0.26595568]
[1763033982503,0.00124467,102930.0,102920.0,0.28819568]
[1763033982714,0.00124467,102930.0,102920.0,0.30819568]
[1763033983050,0.19555148,102930.0,102920.0,0.30819568]
[1763033984504,0.00124467,102930.0,102920.0,0.30819568]
[1763033984713,0.00124467,102930.0,102920.0,0.28819568]
[1763033985047,0.00124467,102930.0,102920.0,0.30819568]
[1763033986289,0.19555148,102930.0,102920.0,0.30819568]
[1763033986669,0.19555148,102930.0,102920.0,0.28819568]
[1763033987465,0.00124467,102930.0,102920.0,0.28819568]
[1763033987662,0.00124467,102930.0,102920.0,0.30819568]
[1763033987865,0.19555148,102930.0,102920.0,0.30819568]
[1763033988080,0.20651148,102930.0,102920.0,0.06988]
[1763033988289,0.24581148,102930.0,102920.0,0.07401]
[1763033988763,0.24581148,102930.0,102920.0,0.24833568]
[1763033989302,0.22204148,102930.0,102920.0,0.24833568]
[1763033989848,0.22204148,102930.0,102920.0,0.26833568]
[1763033990274,0.22204148,102930.0,102920.0,0.05401]
[1763033990478,0.22204148,102930.0,102920.0,0.24833568]
[1763033990729,0.22204148,102930.0,102920.0,0.26420568]
[1763033990898,0.20651148,102930.0,102920.0,0.30819568]
[1763033991080,0.20651148,102930.0,102920.0,0.28819568]
[1763033991502,0.20651148,102930.0,102920.0,0.30819568]
[1763033992109,0.20651148,102930.0,102920.0,0.28819568]
[1763033992741,0.20651148,102930.0,102920.0,0.30819568]
[1763033993326,0.24581148,102930.0,102920.0,0.05401]
[1763033993550,0.24581148,102930.0,102920.0,0.07401]
[1763033993759,0.22204148,102930.0,102920.0,0.07401]
[1763033993965,0.01220467,102930.0,102920.0,0.30819568]
[1763033994596,0.00124467,102930.0,102920.0,0.30819568]
[1763033995843,0.19555148,102930.0,102920.0,0.30819568]
[1763033996047,0.00124467,102930.0,102920.0,0.30819568]
[1763033996475,0.19555148,102930.0,102920.0,0.30819568]
[1763033996881,0.00124467,102930.0,102920.0,0.30819568]
[1763033998355,0.19555148,102930.0,102920.0,0.30819568]
[1763033998774,0.00124467,102930.0,102920.0,0.30819568]
[1763034000004,0.00124467,102930.0,102920.0,0.28819568]
[1763034000224,0.00124467,102930.0,102920.0,0.30819568]
[1763034000434,0.00124467,102930.0,102920.0,0.33735134]
[1763034000634,0.00024467,102930.0,102920.0,0.30819568]
[1763034001083,0.00024467,102930.0,102920.0,0.28819568]
[1763034001270,0.00024467,102930.0,102920.0,0.30819568]
[1763034003740,0.00024467,102930.0,102910.0,0.01173]
[1763034003741,0.19432568,102920.0,102910.0,0.01173]
[1763034003982,0.21933568,102920.0,102900.0,0.22817114]
[1763034004202,0.24366568,102920.0,102900.0,0.22817114]
[1763034004417,0.19432568,102920.0,102910.0,0.23272435]
[1763034004623,0.19432568,102920.0,102910.0,0.08062]
[1763034004836,0.21088568,102920.0,102910.0,0.05811]
[1763034005040,0.21088568,102920.0,102910.0,0.04224]
[1763034005284,0.19432568,102920.0,102910.0,0.25179457]
[1763034005486,0.19432568,102920.0,102910.0,0.07745]
[1763034006108,0.19432568,102920.0,102910.0,0.27571457]
[1763034006332,0.19432568,102920.0,102910.0,0.10137]
[1763034006783,0.19432568,102920.0,102910.0,0.08137]
[1763034007019,0.19532568,102920.0,102910.0,0.10137]
[1763034007602,0.19532568,102920.0,102910.0,0.27571457]
[1763034007814,0.19532568,102920.0,102910.0,0.08137]
[1763034008009,0.19532568,102920.0,102910.0,0.29571457]
[1763034008331,0.19532568,102920.0,102910.0,0.08137]
[1763034008733,0.19532568,102920.0,102910.0,0.10137]
[1763034008914,0.19532568,102920.0,102910.0,0.05745]
[1763034009116,0.20440568,102920.0,102910.0,0.06959]
[1763034009518,0.20440568,102920.0,102910.0,0.08959]
[1763034010184,0.20440568,102920.0,102910.0,0.28785457]
[1763034010365,0.01008,102920.0,102910.0,0.28785457]
[1763034010580,0.001,102920.0,102910.0,0.28785457]
[1763034010777,0.19532568,102920.0,102910.0,0.28785457]
[1763034011196,0.19532568,102920.0,102910.0,0.30785457]
[1763034011449,0.19532568,102920.0,102910.0,0.28785457]
[1763034012280,0.19532568,102920.0,102910.0,0.30785457]
[1763034012865,0.19532568,102920.0,102910.0,0.28785457]
[1763034013281,0.19532568,102920.0,102910.0,0.30785457]
[1763034013461,0.001,102920.0,102910.0,0.28785457]
[1763034014117,0.001,102920.0,102910.0,0.30785457]
[1763034014903,0.19532568,102920.0,102910.0,0.30785457]
[1763034015338,0.19532568,102920.0,102910.0,0.28785457]
[1763034015547,0.001,102920.0,102910.0,0.30785457]
[1763034016590,0.19532568,102920.0,102910.0,0.30785457]
[1763034017180,0.001,102920.0,102910.0,0.28785457]
[1763034017404,0.001,102920.0,102910.0,0.30785457]
[1763034019565,0.19532568,102920.0,102910.0,0.30785457]
[1763034019979,0.001,102920.0,102910.0,0.30785457]
[1763034020187,0.19532568,102920.0,102910.0,0.30785457]
[1763034021061,0.001,102920.0,102910.0,0.30785457]
[1763034026203,0.20440568,102920.0,102910.0,0.26389457]
[1763034026473,0.20440568,102920.0,102910.0,0.28389457]
[1763034026698,0.20440568,102920.0,102910.0,0.06955]
[1763034027112,0.20440568,102920.0,102910.0,0.08955]
[1763034027496,0.20440568,102920.0,102910.0,0.11347]
[1763034027703,0.20440568,102920.0,102910.0,0.09347]
[1763034027913,0.20440568,102920.0,102910.0,0.11347]
[1763034028120,0.20440568,102920.0,102910.0,0.28781457]
[1763034028334,0.20440568,102920.0,102910.0,0.30781457]
[1763034030597,0.20440568,102920.0,102910.0,0.28781457]
[1763034030801,0.20440568,102920.0,102910.0,0.30781457]
[1763034031335,0.20440568,102920.0,102910.0,0.09347]
[1763034031539,0.24399568,102920.0,102910.0,0.05434]
[1763034031953,0.24399568,102920.0,102900.0,0.22945613]
[1763034031954,0.19434457,102910.0,102900.0,0.22945613]
[1763034032162,0.24525457,102910.0,102900.0,0.00089769]
[1763034032552,0.56825457,102910.0,102900.0,0.00089769]
[1763034033915,0.56825457,102910.0,102900.0,0.02089769]
[1763034034068,0.56925457,102910.0,102900.0,0.02089769]
[1763034034686,0.56925457,102910.0,102900.0,0.00089769]
[1763034034881,0.56925457,102910.0,102900.0,0.02089769]
[1763034035088,0.57125457,102910.0,102900.0,0.00089769]
[1763034035471,0.57125457,102910.0,102900.0,0.02089769]
[1763034035886,0.57125457,102910.0,102900.0,0.00089769]
[1763034036503,0.57125457,102910.0,102900.0,0.19526114]
[1763034037140,0.54759457,102910.0,102900.0,0.19526114]
[1763034037353,0.33732,102910.0,102900.0,0.22203114]
[1763034037563,0.003,102910.0,102900.0,0.26583114]
[1763034037803,0.19734457,102910.0,102900.0,0.26583114]
[1763034038011,0.003,102910.0,102900.0,0.26583114]
[1763034040685,0.003,102910.0,102900.0,0.24583114]
[1763034040892,0.003,102910.0,102900.0,0.20604114]
[1763034041072,0.24825457,102910.0,102900.0,0.24824114]
[1763034041278,0.22459457,102910.0,102900.0,0.24824114]
[1763034041483,0.01432,102910.0,102900.0,0.28803114]
[1763034041689,0.01232,102910.0,102900.0,0.30803114]
[1763034041883,0.20566457,102910.0,102900.0,0.28423114]
[1763034042298,0.24625457,102910.0,102900.0,0.04309769]
[1763034042505,0.24625457,102910.0,102900.0,0.00089769]
[1763034042714,0.24625457,102910.0,102900.0,0.04309769]
[1763034043331,0.24625457,102910.0,102900.0,0.23746114]
[1763034043536,0.24625457,102910.0,102900.0,0.25746114]
[1763034043970,0.24625457,102910.0,102900.0,0.00089769]
[1763034044179,0.61267331,102910.0,102900.0,0.00089769]
[1763034048066,0.68487471,102910.0,102900.0,0.00089769]
[1763034048474,0.71488766,102910.0,102900.0,0.00089769]
[1763034048704,0.70580377,102910.0,102900.0,0.00089769]
[1763034048918,0.68487471,102910.0,102900.0,0.00089769]
[1763034049145,0.72711471,102910.0,102900.0,0.00089769]
[1763034049593,0.72911471,102910.0,102900.0,0.00089769]
[1763034051197,0.71094436,102910.0,102900.0,0.00089769]
[1763034053063,0.66870436,102910.0,102900.0,0.00089769]
[1763034053268,0.71090436,102910.0,102900.0,0.00089769]
[1763034058221,0.38790436,102910.0,102900.0,0.00089769]
[1763034058406,0.71090436,102910.0,102900.0,0.00089769]
[1763034061129,0.71090436,102910.0,102900.0,0.02089769]
[1763034061573,0.71090436,102910.0,102900.0,0.00089769]
[1763034061783,0.72907772,102910.0,102900.0,0.00089769]
[1763034061990,0.7590993,102910.0,102900.0,0.00089769]
[1763034062372,0.76874783,102910.0,102900.0,0.00089769]
[1763034062581,0.7590993,102910.0,102900.0,0.00089769]
[1763034064680,0.70506825,102910.0,102900.0,0.00089769]
[1763034065378,0.73424708,102910.0,102900.0,0.00089769]
[1763034065949,0.7441496,102910.0,102900.0,0.00089769]
[1763034067003,0.74412996,102910.0,102900.0,0.00089769]
[1763034070939,0.74412994,102910.0,102900.0,0.00089769]
[1763034072267,0.7702941,102910.0,102900.0,0.00089769]
[1763034072883,0.74412994,102910.0,102900.0,0.00089769]
[1763034073292,0.7702941,102910.0,102900.0,0.00089769]
[1763034073507,0.71819158,102910.0,102900.0,0.00089769]
[1763034073731,0.76039158,102910.0,102900.0,0.00089769]
[1763034073939,0.69202742,102910.0,102900.0,0.00089769]
[1763034074151,0.73422742,102910.0,102900.0,0.00089769]
[1763034075028,0.69202742,102910.0,102900.0,0.00089769]
[1763034075208,0.73422742,102910.0,102900.0,0.00089769]
[1763034075998,0.69202742,102910.0,102900.0,0.00089769]
[1763034076192,0.73422742,102910.0,102900.0,0.00089769]
[1763034076391,0.69202742,102910.0,102900.0,0.00089769]
[1763034076594,0.70504859,102910.0,102900.0,0.00089769]
[1763034080243,0.73422438,102910.0,102900.0,0.00089769]
[1763034080451,0.71606408,102910.0,102900.0,0.00089769]
[1763034080881,0.70698392,102910.0,102900.0,0.00089769]
[1763034081277,0.73314808,102910.0,102900.0,0.00089769]
[1763034086041,0.70698392,102910.0,102900.0,0.00089769]
[1763034088492,0.67780813,102910.0,102900.0,0.00089769]
[1763034091355,0.70510724,102910.0,102900.0,0.00089769]
[1763034097572,0.7312714,102910.0,102900.0,0.00089769]
[1763034097773,0.76044887,102910.0,102900.0,0.00089769]
[1763034106638,0.71824887,102910.0,102900.0,0.00089769]
[1763034106926,0.76044887,102910.0,102900.0,0.00089769]
[1763034107161,0.73428471,102910.0,102900.0,0.00089769]
[1763034115779,0.71062471,102910.0,102900.0,0.00089769]
[1763034115996,0.73409471,102910.0,102900.0,0.00089769]
[1763034117369,0.73409471,102910.0,102900.0,0.02089769]
[1763034119567,0.73409471,102910.0,102900.0,0.00089769]
[1763034129299,0.73409471,102910.0,102900.0,0.02089769]
[1763034130666,0.73409471,102910.0,102900.0,0.00089769]
[1763034130914,0.73409471,102910.0,102900.0,0.02]
[1763034132306,0.66720597,102910.0,102900.0,0.01157]
[1763034132483,0.64217627,102910.0,102900.0,0.05018]
[1763034132695,0.62124145,102910.0,102900.0,0.05018]
[1763034132904,0.66033145,102910.0,102900.0,0.01157]
[1763034133494,0.19436345,102900.0,102890.0,0.23027124]
[1763034134063,0.19436345,102900.0,102890.0,0.26543124]
[1763034134662,0.19436345,102900.0,102890.0,0.26557108]
[1763034134857,0.19536345,102900.0,102890.0,0.26557108]
[1763034135085,0.43886345,102900.0,102890.0,0.30773108]
[1763034136538,0.48855345,102900.0,102890.0,0.05473984]
[1763034136772,0.44946345,102900.0,102890.0,0.28773219]
[1763034137001,0.44946345,102900.0,102890.0,0.30773219]
[1763034137902,0.2445,102900.0,102890.0,0.30773219]
[1763034138115,0.43886345,102900.0,102890.0,0.30773219]
[1763034140120,0.43886345,102900.0,102890.0,0.28773219]
[1763034140367,0.43886345,102900.0,102890.0,0.30773219]
[1763034140508,0.002,102900.0,102890.0,0.28773219]
[1763034140706,0.002,102900.0,102890.0,0.33502282]
[1763034141265,0.002,102900.0,102890.0,0.30773219]
[1763034141467,0.002,102900.0,102890.0,0.28773219]
[1763034141674,0.19434614,102910.0,102900.0,0.02]
[1763034141876,0.59129226,102920.0,102900.0,0.22912345]